[Event "FIDE Chesscom Online Nations Cup"]
[Site "Online"]
[Date "2020.05.07"]
[Round "5"]
[White "Adhiban, B.."]
[Black "Karjakin, Sergey"]
[Result "1/2-1/2"]
[ECO "D37"]
[WhiteElo "2624"]
[BlackElo "2709"]
[Annotator "RC"]
[PlyCount "41"]
[EventDate "2020.05.05"]
[EventType "team-tourn"]
[SourceTitle "playchess.com"]
[Source "ChessBase"]
[SourceQuality "1"]
[WhiteTeam "India"]
[BlackTeam "Russia"]
[WhiteTeamCountry "IND"]
[BlackTeamCountry "RUS"]
[TimeControl "1500+10"]

1. d4 {[%emt 0:00:06]} Nf6 {[%emt 0:00:08]} 2. c4 {[%emt 0:00:02]} e6 {[%emt 0:00:01]} 3. Nf3 {[%emt 0:00:01]} d5 {[%emt 0:00:02]} 4. Nc3 {[%emt 0:00:02]} Be7 {[%emt 0:00:04]} 5. Bf4 {[%emt 0:00:02]} O-O {[%emt 0:00:02]} 6. e3 {[%emt 0:00:02]} Nbd7 {[%emt 0:00:09]} 7. Be2 {[%emt 0:00:03]} dxc4 {[%emt 0:00:23]} 8. O-O {[%emt 0:00:05]} a6 {[%emt 0:00:52]} 9. a4 {[%emt 0:00:03]} c5 {[%emt 0:01:38]} 10. d5 {[%emt 0:01:08]} exd5 {[%emt 0:00:07]} 11. Nxd5 {[%emt 0:00:02]} Nxd5 {[%emt 0:00:00]} 12. Qxd5 {[%emt 0:00:02]} Nf6 {[%emt 0:01:57]} 13. Qxc4 {[%emt 0:00:07]} Be6 {[%emt 0:00:43]} 14. Qc2 {[%emt 0:00:06]} h6 {[%emt 0:01:12]} 15. Rfd1 {[%emt 0:05:43]} Qb6 {[%emt 0:00:53]} 16. Nd2 {[%emt 0:02:15]} Rad8 {[%emt 0:01:16]} 17. Nc4 {[%emt 0:02:16]} Qc6 {[%emt 0:01:18]} 18. Ne5 {[%emt 0:02:02]} Qb6 {[%emt 0:00:35]} 19. Nc4 {[%emt 0:00:03]} Qc6 {[%emt 0:00:04]} 20. Ne5 {[%emt 0:00:02]} Qb6 {[%emt 0:00:21]} 21. Nc4 {[%emt 0:00:02]} 1/2-1/2

[Event "FIDE Chesscom Online Nations Cup"]
[Site "Online"]
[Date "2020.05.09"]
[Round "10"]
[White "Koneru, Humpy"]
[Black "Girya, Olga"]
[Result "1-0"]
[ECO "D38"]
[WhiteElo "2483"]
[BlackElo "2471"]
[Annotator "ChessBase"]
[PlyCount "201"]
[EventDate "2020.05.05"]
[EventType "team-tourn"]
[SourceTitle "playchess.com"]
[Source "ChessBase"]
[SourceQuality "1"]
[WhiteTeam "India"]
[BlackTeam "Russia"]
[WhiteTeamCountry "IND"]
[BlackTeamCountry "RUS"]
[TimeControl "1500+10"]

1. d4 {[%emt 0:00:02]} Nf6 {[%emt 0:00:04]} 2. c4 {[%emt 0:00:04]} e6 {[%emt 0:00:02]} 3. Nf3 {[%emt 0:00:08]} d5 {[%emt 0:00:02]} 4. Nc3 {[%emt 0:00:18]} Bb4 {[%emt 0:00:02]} 5. Bg5 {[%emt 0:00:20]} h6 {[%emt 0:00:04]} 6. Bxf6 {[%emt 0:00:05]} Qxf6 {[%emt 0:00:01]} 7. Qb3 {[%emt 0:00:38]} c5 {[%emt 0:00:20]} 8. cxd5 {[%emt 0:00:16]} exd5 {[%emt 0:00:02]} 9. a3 {[%emt 0:00:52]} Bxc3+ {[%emt 0:00:20]} 10. Qxc3 {[%emt 0:00:04]} c4 {[%emt 0:02:11]} 11. b3 {[%emt 0:04:15]} Be6 {[%emt 0:00:26]} 12. bxc4 {[%emt 0:01:24]} dxc4 {[%emt 0:00:03]} 13. e3 {[%emt 0:00:45]} Nd7 {[%emt 0:04:02]} 14. Be2 {[%emt 0:02:02]} O-O {[%emt 0:00:05]} 15. Nd2 {[%emt 0:02:56]} b5 {[%emt 0:07:08]} 16. Bf3 {[%emt 0:00:54]} Rab8 {[%emt 0:00:09]} 17. O-O {[%emt 0:00:30]} Rfc8 {[%emt 0:06:24]} 18. Rfc1 {[%emt 0:01:24]} Qd8 {[%emt 0:02:16]} 19. Rab1 {[%emt 0:00:52]} a5 {[%emt 0:00:45]} 20. e4 {[%emt 0:00:35]} f6 {[%emt 0:00:08]} 21. d5 {[%emt 0:00:24]} Bf7 {[%emt 0:00:02]} 22. Bg4 {[%emt 0:00:03]} Rc5 {[%emt 0:02:15]} 23. Bxd7 {[%emt 0:02:47]} Qxd7 {[%emt 0:00:02]} 24. Qxa5 {[%emt 0:02:33]} f5 {[%emt 0:00:03]} 25. Rxc4 {[%emt 0:01:20]} Rxc4 {[%emt 0:00:37]} 26. Nxc4 {[%emt 0:00:02]} fxe4 {[%emt 0:00:14]} 27. Ne3 {[%emt 0:00:04]} Qb7 {[%emt 0:01:02]} 28. Qd2 {[%emt 0:01:00]} Ra8 {[%emt 0:00:18]} 29. Rb3 {[%emt 0:02:00]} Qd7 {[%emt 0:00:06]} 30. h3 {[%emt 0:00:22]} Rd8 {[%emt 0:00:10]} 31. Rb4 {[%emt 0:00:35]} Qa7 {[%emt 0:00:03]} 32. Qb2 {[%emt 0:00:14]} Ra8 {[%emt 0:00:19]} 33. Rxb5 {[%emt 0:00:19]} Qxa3 {[%emt 0:00:02]} 34. Qxa3 {[%emt 0:00:15]} Rxa3 {[%emt 0:00:02]} 35. Rb8+ {[%emt 0:00:06]} Kh7 {[%emt 0:00:01]} 36. Rb7 {[%emt 0:00:03]} Kg6 {[%emt 0:00:31]} 37. Rb6+ {[%emt 0:00:14]} Kh7 {[%emt 0:00:07]} 38. Kh2 {[%emt 0:00:10]} Rd3 {[%emt 0:00:06]} 39. Rd6 {[%emt 0:00:01]} Rd2 {[%emt 0:00:17]} 40. Kg3 {[%emt 0:00:04]} g6 {[%emt 0:00:24]} 41. h4 {[%emt 0:00:04]} Kg7 {[%emt 0:00:18]} 42. Rd7 {[%emt 0:00:12]} Kf8 {[%emt 0:00:07]} 43. Ng4 {[%emt 0:00:08]} Rxd5 {[%emt 0:00:08]} 44. Rxd5 {[%emt 0:00:04]} Bxd5 {[%emt 0:00:01]} 45. Nxh6 {[%emt 0:00:04]} Ke7 {[%emt 0:00:20]} 46. Ng4 {[%emt 0:00:06]} Ke6 {[%emt 0:00:08]} 47. Kf4 {[%emt 0:00:04]} Bc4 {[%emt 0:00:17]} 48. Ne3 {[%emt 0:00:18]} Bd3 {[%emt 0:00:02]} 49. Kg5 {[%emt 0:00:06]} Kf7 {[%emt 0:00:03]} 50. Ng4 {[%emt 0:00:05]} Bc2 {[%emt 0:00:16]} 51. Ne5+ {[%emt 0:00:13]} Kg7 {[%emt 0:00:05]} 52. g3 {[%emt 0:00:04]} Bb1 {[%emt 0:00:03]} 53. Nc4 {[%emt 0:00:13]} Kf7 {[%emt 0:00:10]} 54. Nd2 {[%emt 0:00:11]} e3 {[%emt 0:00:15]} 55. fxe3 {[%emt 0:00:01]} Bd3 {[%emt 0:00:02]} 56. Nf3 {[%emt 0:00:12]} Bc2 {[%emt 0:00:12]} 57. Ne5+ {[%emt 0:00:06]} Kg7 {[%emt 0:00:01]} 58. Nc6 {[%emt 0:00:08]} Bb1 {[%emt 0:00:03]} 59. Nd4 {[%emt 0:00:08]} Bd3 {[%emt 0:00:25]} 60. Kf4 {[%emt 0:00:21]} Kf6 {[%emt 0:00:03]} 61. e4 {[%emt 0:00:06]} Bb1 {[%emt 0:00:04]} 62. e5+ {[%emt 0:00:09]} Ke7 {[%emt 0:00:20]} 63. Kg5 {[%emt 0:00:09]} Bd3 {[%emt 0:00:11]} 64. Nb3 {[%emt 0:00:32]} Bb1 {[%emt 0:00:10]} 65. Nc5 {[%emt 0:00:24]} Bc2 {[%emt 0:00:05]} 66. Kf4 {[%emt 0:00:15]} Bb1 {[%emt 0:00:13]} 67. Ke3 {[%emt 0:00:10]} Bf5 {[%emt 0:00:35]} 68. Kf4 {[%emt 0:00:07]} Bb1 {[%emt 0:00:01]} 69. Nb3 {[%emt 0:00:11]} Ke6 {[%emt 0:00:09]} 70. Nd4+ {[%emt 0:00:08]} Kd5 {[%emt 0:00:13]} 71. Ne2 {[%emt 0:00:25]} Ke6 {[%emt 0:00:06]} 72. Kg5 {[%emt 0:00:08]} Kxe5 {[%emt 0:00:09]} 73. Nf4 {[%emt 0:00:01]} Bc2 {[%emt 0:00:14]} 74. g4 {[%emt 0:00:07]} Bd1 {[%emt 0:00:19]} 75. Nxg6+ {[%emt 0:00:06]} Ke6 {[%emt 0:00:01]} 76. Nf4+ {[%emt 0:00:11]} Kf7 {[%emt 0:00:03]} 77. Nd3 {[%emt 0:00:04]} Kg7 {[%emt 0:00:14]} 78. Ne5 {[%emt 0:00:06]} Ba4 {[%emt 0:00:14]} 79. h5 {[%emt 0:00:18]} Bb5 {[%emt 0:00:11]} 80. Kf5 {[%emt 0:00:11]} Be2 {[%emt 0:00:10]} 81. Kg5 {[%emt 0:00:09]} Bb5 {[%emt 0:00:01]} 82. Nf3 {[%emt 0:00:07]} Bc6 {[%emt 0:00:18]} 83. Nd4 {[%emt 0:00:01]} Ba4 {[%emt 0:00:07]} 84. Nf5+ {[%emt 0:00:09]} Kh7 {[%emt 0:00:04]} 85. Kh4 {[%emt 0:00:16]} Bc2 {[%emt 0:00:20]} 86. Ne3 {[%emt 0:00:25]} Bd3 {[%emt 0:00:07]} 87. g5 {[%emt 0:00:13]} Kg7 {[%emt 0:00:09]} 88. Nd5 {[%emt 0:00:05]} Bc4 {[%emt 0:00:17]} 89. Nf4 {[%emt 0:00:04]} Bb3 {[%emt 0:00:05]} 90. Kg4 {[%emt 0:00:16]} Bc2 {[%emt 0:00:21]} 91. Kf3 {[%emt 0:00:19]} Bd1+ {[%emt 0:00:06]} 92. Ke4 {[%emt 0:00:03]} Bg4 {[%emt 0:00:17]} 93. Ke5 {[%emt 0:00:04]} Bd1 {[%emt 0:00:04]} 94. h6+ {[%emt 0:00:16]} Kh7 {[%emt 0:00:06]} 95. Kf6 {[%emt 0:00:05]} Bc2 {[%emt 0:00:07]} 96. Ne6 {[%emt 0:00:03]} Bb1 {[%emt 0:00:09]} 97. Nf8+ {[%emt 0:00:14]} Kg8 {[%emt 0:00:09]} 98. g6 {[%emt 0:00:07]} Kh8 {[%emt 0:00:16]} 99. Kg5 {[%emt 0:00:27]} Kg8 {[%emt 0:00:15]} 100. Nd7 {[%emt 0:00:03]} Ba2 {[%emt 0:00:12]} 101. Nf6+ {[%emt 0:00:13]} 1-0

[Event "FIDE Chesscom Online Nations Cup"]
[Site "Online"]
[Date "2020.05.09"]
[Round "10"]
[White "Saduakassova, Dinara"]
[Black "Dzagnidze, Nana"]
[Result "1/2-1/2"]
[ECO "B49"]
[WhiteElo "2412"]
[BlackElo "2447"]
[Annotator "ChessBase"]
[PlyCount "72"]
[EventDate "2020.05.05"]
[EventType "team-tourn"]
[SourceTitle "playchess.com"]
[Source "ChessBase"]
[SourceQuality "1"]
[WhiteTeam "World"]
[BlackTeam "Europe"]
[BlackTeamCountry "GEO"]
[TimeControl "1500+10"]

1. e4 {[%emt 0:00:06]} c5 {[%emt 0:00:03]} 2. Nf3 {[%emt 0:00:02]} Nc6 {[%emt 0:00:10]} 3. d4 {[%emt 0:00:04]} cxd4 {[%emt 0:00:02]} 4. Nxd4 {[%emt 0:00:01]} e6 {[%emt 0:00:02]} 5. Nc3 {[%emt 0:00:02]} a6 {[%emt 0:00:05]} 6. Be2 {[%emt 0:00:16]} Qc7 {[%emt 0:00:04]} 7. O-O {[%emt 0:00:06]} Nf6 {[%emt 0:00:05]} 8. Be3 {[%emt 0:00:15]} Bd6 {[%emt 0:03:06]} 9. f4 {[%emt 0:02:22]} Nxd4 {[%emt 0:00:23]} 10. Qxd4 {[%emt 0:00:10]} e5 {[%emt 0:00:05]} 11. Qd2 {[%emt 0:02:05]} exf4 {[%emt 0:01:23]} 12. Bxf4 {[%emt 0:00:05]} Bxf4 {[%emt 0:00:03]} 13. Rxf4 {[%emt 0:00:15]} d6 {[%emt 0:01:04]} 14. Rd1 {[%emt 0:03:28]} Qc5+ {[%emt 0:00:04]} 15. Kf1 {[%emt 0:01:38]} Be6 {[%emt 0:02:19]} 16. Qxd6 {[%emt 0:00:13]} Qxd6 {[%emt 0:01:44]} 17. Rxd6 {[%emt 0:00:03]} Rc8 {[%emt 0:00:11]} 18. e5 {[%emt 0:03:27]} Nd7 {[%emt 0:00:12]} 19. Bg4 {[%emt 0:00:22]} Bxg4 {[%emt 0:00:59]} 20. Rxg4 {[%emt 0:00:03]} Nxe5 {[%emt 0:00:40]} 21. Rb4 {[%emt 0:02:11]} Nc4 {[%emt 0:03:42]} 22. Rd3 {[%emt 0:00:08]} b5 {[%emt 0:00:21]} 23. a4 {[%emt 0:00:33]} bxa4 {[%emt 0:00:40]} 24. Nd5 {[%emt 0:01:50]} Ne5 {[%emt 0:03:05]} 25. Re3 {[%emt 0:00:37]} f6 {[%emt 0:00:03]} 26. Rb7 {[%emt 0:00:26]} Rd8 {[%emt 0:00:14]} 27. Nc7+ {[%emt 0:01:54]} Kf7 {[%emt 0:00:12]} 28. Nxa6+ {[%emt 0:00:08]} Kg6 {[%emt 0:00:06]} 29. Nc5 {[%emt 0:01:10]} Rhe8 {[%emt 0:05:39]} 30. Rg3+ {[%emt 0:02:11]} Kf5 {[%emt 0:00:04]} 31. Nd3 {[%emt 0:00:23]} Nxd3 {[%emt 0:01:01]} 32. Rxd3 {[%emt 0:01:30]} g5 {[%emt 0:00:10]} 33. Rxd8 {[%emt 0:00:27]} Rxd8 {[%emt 0:00:02]} 34. Ke2 {[%emt 0:00:01]} h5 {[%emt 0:00:16]} 35. Rb5+ {[%emt 0:00:03]} Ke6 {[%emt 0:00:52]} 36. Rb4 {[%emt 0:00:08]} Ra8 {[%emt 0:00:04]} 1/2-1/2